bitfinex/quotes_SOLUSD_20241229
["timestamp","ask_amount","ask_price","bid_price","bid_amount"]
[1735485284382,10.25056342,194.05,193.98,10.25056342]
[1735485285196,10.25056342,194.05,193.94,1.6593]
[1735485285197,23.776884,194.06,193.99,10.25056342]
[1735485285400,34.02744742,194.06,193.99,10.25056342]
[1735485287313,10.25056342,194.05,193.98,10.25056342]
[1735485289677,10.25056342,194.06,193.99,10.25056342]
[1735485289878,7.723,194.12,194.05,10.25056342]
[1735485290092,7.723,194.12,194.06,10.25056342]
[1735485290289,17.97356342,194.12,194.05,10.25056342]
[1735485292008,7.723,194.12,194.05,10.25056342]
[1735485292214,17.97356342,194.12,194.05,10.25056342]
[1735485293611,10.25056342,194.11,194.05,10.25056342]
[1735485293784,10.25056342,194.11,194.03,20.0]
[1735485293983,10.25056342,194.11,194.04,10.25056342]
[1735485294885,10.25056342,194.11,194.01,20.0]
[1735485295085,10.25056342,194.11,194.04,10.25056342]
[1735485297752,10.25056342,194.09,193.98,6.082]
[1735485297911,10.25056342,194.09,194.02,10.25056342]
[1735485298642,10.25056342,194.08,194.02,10.25056342]
[1735485298844,10.25056342,194.08,194.01,10.25056342]
[1735485300550,23.776884,194.11,194.01,10.25056342]
[1735485300713,23.776884,194.08,194.02,10.25056342]
[1735485300914,23.776884,194.11,194.02,10.25056342]
[1735485301113,23.776884,194.08,194.02,10.25056342]
[1735485301414,10.25056342,194.09,194.02,10.25056342]
[1735485301737,10.25056342,194.11,194.04,10.25056342]
[1735485301938,23.776884,194.1,194.04,10.25056342]
[1735485303041,10.25056342,194.1,194.03,10.25056342]
[1735485303949,10.25056342,194.09,194.02,10.25056342]
[1735485304963,10.25056342,194.06,193.99,30.25056342]
[1735485305124,10.25056342,194.05,193.98,10.25056342]
[1735485306312,10.25056342,194.06,193.99,10.25056342]
[1735485306730,10.25056342,194.06,193.97,20.18510495]
[1735485306936,10.25056342,194.06,193.99,10.25056342]
[1735485307138,23.776884,194.11,194.01,10.25056342]
[1735485307345,10.25056342,194.11,194.04,10.25056342]
[1735485307539,7.723,194.12,193.97,0.95806117]
[1735485307540,7.723,194.12,194.05,10.25056342]
[1735485307730,11.77264065,194.14,194.07,10.25056342]
[1735485307935,3.87772324,194.14,194.08,10.25056342]
[1735485308131,23.776884,194.14,194.08,10.25056342]
[1735485308727,10.25056342,194.14,194.07,10.25056342]
[1735485308927,10.25056342,194.13,194.06,10.25056342]
[1735485309644,10.25056342,194.14,194.07,10.25056342]
[1735485310558,7.9394,194.17,194.11,10.25056342]
[1735485310729,23.776884,194.16,194.11,10.25056342]
[1735485311737,23.776884,194.14,194.06,3.8581435]
[1735485311945,10.25056342,194.13,194.06,14.10870692]
[1735485312239,10.25056342,194.13,194.06,10.25056342]
[1735485313761,23.776884,194.16,194.04,10.25056342]
[1735485313963,7.9394,194.17,194.02,10.25056342]
[1735485313964,23.776884,194.08,194.02,10.25056342]
[1735485314150,10.25056342,194.08,194.0,1.583]
[1735485314455,10.25056342,194.06,193.99,10.25056342]
[1735485314654,34.02744742,194.04,193.98,10.25056342]
[1735485315467,7.9394,194.08,193.98,10.25056342]
[1735485315468,23.776884,194.07,193.98,10.25056342]
[1735485315652,23.776884,194.07,194.01,10.25056342]
[1735485316545,7.9394,194.08,194.02,10.25056342]
[1735485316864,23.776884,194.08,194.02,10.25056342]
[1735485318338,23.776884,194.08,194.01,10.25056342]
[1735485318339,10.25056342,194.08,194.01,10.25056342]
[1735485318957,10.25056342,194.07,194.0,10.25056342]
[1735485319235,34.02744742,194.05,193.98,14.10797541]
[1735485319647,34.02744742,194.05,193.98,10.25056342]
[1735485319841,23.776884,194.09,194.0,10.25056342]
[1735485320165,10.25056342,194.08,194.01,10.25056342]
[1735485320338,23.776884,194.07,194.01,10.25056342]
[1735485321347,18.18996342,194.13,194.06,10.25056342]
[1735485321547,6.4264,194.13,194.07,10.25056342]
[1735485321739,23.776884,194.13,194.07,10.25056342]
[1735485321947,23.776884,194.13,194.08,10.25056342]
[1735485322148,23.776884,194.14,194.08,10.25056342]
[1735485322350,23.776884,194.14,194.08,15.97379912]
[1735485322647,15.97379912,194.14,194.07,15.97379912]
[1735485323370,15.97379912,194.16,194.08,15.97379912]
[1735485323579,23.91319912,194.17,194.1,15.97379912]
[1735485324260,23.776884,194.16,194.1,15.97379912]
[1735485326062,23.91319912,194.17,194.1,15.97379912]
[1735485326658,23.776884,194.16,194.1,15.97379912]
[1735485328361,15.97379912,194.18,194.1,15.97379912]
[1735485328670,15.97379912,194.19,194.12,15.97379912]
[1735485328871,15.97379912,194.18,194.11,15.97379912]
[1735485329069,15.97379912,194.18,194.06,50.0]
[1735485329070,39.75068312,194.17,194.1,15.97379912]
[1735485329369,39.75068312,194.17,194.09,15.97379912]
[1735485329370,15.97379912,194.16,194.09,15.97379912]
[1735485330572,15.97379912,194.16,194.05,1.5957]
[1735485330573,15.97379912,194.17,194.1,15.97379912]
[1735485330751,23.776884,194.17,194.11,15.97379912]
[1735485332956,15.97379912,194.17,194.1,15.97379912]
[1735485333146,15.97379912,194.17,194.09,15.97379912]
[1735485334169,15.97379912,194.18,194.11,15.97379912]
[1735485334563,23.776884,194.17,194.11,15.97379912]
[1735485335277,15.97379912,194.17,194.1,15.97379912]
[1735485335771,23.776884,194.17,194.11,15.97379912]
[1735485336476,15.97379912,194.2,194.12,15.97379912]
[1735485336656,15.97379912,194.2,194.13,15.97379912]
[1735485337067,15.97379912,194.2,194.08,0.77252578]
[1735485337068,24.18449912,194.22,194.15,15.97379912]
[1735485337671,23.776884,194.21,194.16,15.97379912]
[1735485338074,15.97379912,194.23,194.16,15.97379912]
[1735485338588,23.776884,194.22,194.16,15.97379912]
[1735485338883,15.97379912,194.24,194.17,15.97379912]
[1735485339576,23.776884,194.23,194.18,15.97379912]
[1735485339763,23.776884,194.23,194.17,15.97379912]
[1735485340174,23.776884,194.23,194.16,15.97379912]
[1735485341279,7.89491741,194.32,194.2,15.97379912]
[1735485341573,23.86871653,194.32,194.25,15.97379912]
[1735485341776,7.89491741,194.32,194.25,15.97379912]
[1735485341975,7.89491741,194.32,194.26,15.97379912]
[1735485342377,7.89491741,194.32,194.26,10.20388784]
[1735485342575,10.20388784,194.34,194.27,10.20388784]
[1735485343780,8.0525,194.39,194.3,10.20388784]
[1735485343982,10.20388784,194.37,194.3,10.20388784]
[1735485344393,15.93706524,194.37,194.3,15.93706524]
[1735485345071,23.98956524,194.39,194.32,15.93706524]
[1735485345283,6.526,194.39,194.33,15.93706524]
[1735485346270,23.776884,194.39,194.33,15.93706524]
[1735485346768,15.93706524,194.42,194.35,15.93706524]
[1735485347392,20.0,194.46,194.37,15.93706524]
[1735485347575,23.776884,194.43,194.37,15.93706524]
[1735485347771,15.93706524,194.44,194.37,15.93706524]
[1735485347972,15.93706524,194.45,194.38,15.93706524]
[1735485348889,23.776884,194.44,194.38,15.93706524]
[1735485349094,15.93706524,194.45,194.38,15.93706524]
[1735485349480,23.776884,194.44,194.39,15.93706524]
[1735485349679,15.93706524,194.46,194.39,15.93706524]
[1735485349888,23.776884,194.45,194.39,15.93706524]
[1735485350092,43.776884,194.46,194.39,15.93706524]
[1735485350282,15.93706524,194.48,194.41,15.93706524]
[1735485351779,23.776884,194.47,194.41,15.93706524]
[1735485351969,15.93706524,194.48,194.41,15.93706524]
[1735485352397,23.776884,194.47,194.41,15.93706524]
[1735485353288,23.776884,194.48,194.42,15.93706524]
[1735485354006,23.776884,194.48,194.36,20.0]
[1735485354007,23.776884,194.44,194.36,20.0]
[1735485354184,39.71394924,194.44,194.37,15.93706524]
[1735485354612,15.93706524,194.43,194.36,15.93706524]
[1735485354909,23.776884,194.4,194.34,15.93706524]
[1735485355796,23.776884,194.4,194.33,15.93706524]
[1735485355970,39.71394924,194.4,194.33,15.93706524]
[1735485356578,23.776884,194.38,194.32,15.93706524]
[1735485356990,15.93706524,194.38,194.31,15.93706524]
[1735485358113,39.71394924,194.39,194.32,15.93706524]
[1735485360320,23.776884,194.39,194.33,15.93706524]
[1735485360822,23.776884,194.39,194.34,15.93706524]
[1735485361188,23.776884,194.39,194.33,15.93706524]
[1735485361388,23.776884,194.39,194.31,15.93706524]
[1735485361389,39.71394924,194.39,194.31,15.93706524]
[1735485361610,39.71394924,194.39,194.32,15.93706524]
[1735485362096,39.71394924,194.39,194.31,15.93706524]
[1735485362285,15.93706524,194.38,194.31,15.93706524]
[1735485362485,15.93706524,194.37,194.3,15.93706524]
[1735485362912,39.71394924,194.39,194.31,15.93706524]
[1735485364129,39.71394924,194.39,194.32,15.93706524]
[1735485364424,23.776884,194.39,194.33,15.93706524]
[1735485366120,23.776884,194.39,194.32,15.93706524]
[1735485366326,15.93706524,194.37,194.3,15.93706524]
[1735485366623,15.93706524,194.36,194.29,35.93706524]
[1735485366836,15.93706524,194.39,194.32,15.93706524]
[1735485367010,15.93706524,194.4,194.32,15.93706524]
[1735485367723,15.93706524,194.39,194.32,15.93706524]
[1735485368048,15.93706524,194.37,194.3,15.93706524]
[1735485368732,15.93706524,194.38,194.31,15.93706524]
[1735485368931,23.776884,194.36,194.3,15.93706524]
[1735485369119,39.71394924,194.36,194.29,35.93706524]
[1735485369807,23.776884,194.36,194.29,35.93706524]
[1735485370135,23.776884,194.36,194.3,15.93706524]
[1735485370321,15.93706524,194.38,194.31,15.93706524]
[1735485371117,39.71394924,194.37,194.3,15.93706524]
[1735485372315,15.93706524,194.42,194.34,15.93706524]
[1735485372725,23.776884,194.41,194.34,15.93706524]
[1735485373031,15.93706524,194.41,194.34,15.93706524]
[1735485373221,15.93706524,194.4,194.32,15.93706524]
[1735485373428,15.93706524,194.38,194.31,15.93706524]
[1735485375334,23.776884,194.35,194.29,20.0]
[1735485376523,23.776884,194.35,194.29,35.93706524]
[1735485377238,23.776884,194.36,194.3,15.93706524]
[1735485377654,15.93706524,194.4,194.33,15.93706524]
[1735485378227,15.93706524,194.41,194.34,15.93706524]
[1735485378431,15.93706524,194.41,194.28,32.40632849]
[1735485378432,39.71394924,194.4,194.33,15.93706524]
[1735485379852,23.776884,194.38,194.32,15.93706524]
[1735485380030,23.776884,194.38,194.33,15.93706524]
[1735485380639,23.776884,194.38,194.32,15.93706524]
[1735485381536,15.93706524,194.41,194.33,15.93706524]
[1735485381741,1.5812,194.44,194.34,15.93706524]
[1735485381742,15.93706524,194.42,194.34,15.93706524]
[1735485381938,15.93706524,194.41,194.34,15.93706524]
[1735485382114,39.71394924,194.43,194.36,15.93706524]
[1735485383730,22.13936524,194.45,194.38,15.93706524]
[1735485383925,15.93706524,194.46,194.39,15.93706524]
[1735485384129,15.93706524,194.47,194.39,15.93706524]
[1735485384441,23.776884,194.46,194.39,15.93706524]
[1735485385143,15.93706524,194.47,194.39,15.93706524]
[1735485385640,23.776884,194.46,194.4,15.93706524]
[1735485386537,6.3655,194.5,194.42,15.93706524]
[1735485386836,22.30256524,194.5,194.43,15.93706524]
[1735485387338,39.71394924,194.49,194.41,15.93706524]
[1735485387542,23.776884,194.47,194.41,15.93706524]
[1735485388419,15.93706524,194.46,194.39,15.93706524]
[1735485388820,15.93706524,194.44,194.37,35.93706524]
[1735485389034,15.93706524,194.44,194.36,1.6372]
[1735485389035,23.776884,194.42,194.36,15.93706524]
[1735485389231,23.776884,194.42,194.31,31.6372]
[1735485389232,15.93706524,194.39,194.32,15.93706524]
[1735485389634,15.93706524,194.4,194.33,15.93706524]
[1735485389840,15.93706524,194.4,194.33,19.78216648]
[1735485390141,22.30256524,194.42,194.35,15.93706524]
[1735485390462,17.44836524,194.44,194.37,15.93706524]
[1735485390742,23.776884,194.43,194.37,15.93706524]
[1735485392128,23.776884,194.43,194.38,15.93706524]
[1735485393551,15.93706524,194.46,194.39,15.93706524]
[1735485393724,22.30256524,194.47,194.4,15.93706524]
[1735485394232,1.5113,194.48,194.42,15.93706524]
[1735485394840,15.93706524,194.47,194.4,15.93706524]
[1735485395651,1.5113,194.48,194.41,15.93706524]
[1735485397246,1.5113,194.48,194.42,15.93706524]
[1735485398748,17.44836524,194.48,194.41,15.93706524]
[1735485398950,17.44836524,194.48,194.4,15.93706524]
[1735485399450,17.44836524,194.48,194.41,15.93706524]
[1735485399958,15.93706524,194.5,194.43,15.93706524]
[1735485400123,15.93706524,194.51,194.44,15.93706524]
[1735485400653,23.776884,194.5,194.44,15.93706524]
[1735485401151,7.89491741,194.54,194.46,20.0]
[1735485401350,7.89491741,194.54,194.52,15.93706524]
[1735485401655,7.89491741,194.54,194.53,15.93706524]
[1735485402340,15.93706524,194.62,194.53,15.93706524]
[1735485402533,15.93706524,194.62,194.55,15.93706524]
[1735485403859,15.93706524,194.57,194.49,15.93706524]
[1735485404966,23.776884,194.57,194.5,15.93706524]
[1735485405179,20.0,194.61,194.5,15.93706524]
[1735485405339,15.93706524,194.58,194.5,15.93706524]
[1735485405665,23.776884,194.57,194.5,15.93706524]
[1735485405867,15.93706524,194.58,194.51,15.93706524]
[1735485406266,23.776884,194.58,194.52,15.93706524]
[1735485406582,15.93706524,194.6,194.52,15.93706524]
[1735485406870,15.93706524,194.61,194.54,15.93706524]
[1735485407244,23.776884,194.64,194.53,15.93706524]
[1735485407245,15.93706524,194.6,194.53,15.93706524]
[1735485407756,15.93706524,194.61,194.54,15.93706524]
[1735485408867,7.9197,194.65,194.51,15.93706524]
[1735485408868,15.93706524,194.59,194.51,15.93706524]
[1735485409034,15.93706524,194.57,194.5,15.93706524]
[1735485409455,23.776884,194.57,194.51,15.93706524]
[1735485409868,15.93706524,194.59,194.52,15.93706524]
[1735485410271,15.93706524,194.6,194.52,15.93706524]
[1735485410747,23.776884,194.59,194.52,15.93706524]
[1735485410947,15.93706524,194.59,194.52,15.93706524]
[1735485411638,15.93706524,194.58,194.51,15.93706524]
[1735485411848,15.93706524,194.58,194.5,15.93706524]
[1735485412047,23.776884,194.55,194.49,15.93706524]
[1735485412270,39.71394924,194.55,194.48,15.93706524]
[1735485412474,23.776884,194.55,194.49,15.93706524]
[1735485413269,15.93706524,194.55,194.48,15.93706524]
[1735485413659,23.776884,194.55,194.49,16.12568564]
[1735485413861,39.71394924,194.55,194.49,0.1886204]
[1735485414075,15.93706524,194.54,194.49,0.1886204]
[1735485414278,23.776884,194.53,194.49,0.1886204]
[1735485415679,15.93706524,194.53,194.49,0.1886204]
[1735485415861,23.776884,194.51,194.49,0.1886204]
[1735485416566,15.93706524,194.5,194.49,0.1886204]
[1735485416768,39.71394924,194.5,194.49,0.1886204]
[1735485417163,23.776884,194.5,194.49,0.1886204]
[1735485418787,15.93706524,194.54,194.49,0.1886204]
[1735485418966,15.93706524,194.55,194.49,0.1886204]
[1735485419491,7.7372,194.57,194.5,15.93706524]
[1735485419492,23.67426524,194.57,194.5,15.93706524]
[1735485419685,23.776884,194.56,194.5,15.93706524]
[1735485420885,7.7372,194.57,194.5,15.93706524]
[1735485421065,7.7372,194.57,194.51,15.93706524]
[1735485421273,15.93706524,194.6,194.53,15.93706524]
[1735485421575,23.776884,194.59,194.52,15.93706524]
[1735485421771,15.93706524,194.6,194.52,15.93706524]
[1735485423188,23.776884,194.59,194.52,15.93706524]
[1735485423892,15.93706524,194.61,194.53,15.93706524]
[1735485424575,23.776884,194.6,194.54,15.93706524]
[1735485424775,15.93706524,194.62,194.55,15.93706524]
[1735485425082,15.93706524,194.64,194.57,15.93706524]
[1735485425261,15.93706524,194.63,194.56,15.93706524]
[1735485425458,10.0,194.58,194.56,15.93706524]
[1735485426198,10.0,194.58,194.57,15.93706524]
[1735485428384,10.0,194.58,194.54,15.93706524]
[1735485428765,10.0,194.58,194.53,15.93706524]
[1735485428965,10.0,194.58,194.54,15.93706524]
[1735485429176,10.0,194.58,194.55,15.93706524]
[1735485430567,10.0,194.58,194.53,15.93706524]
[1735485430894,15.93706524,194.57,194.5,15.93706524]
[1735485431596,23.776884,194.56,194.5,15.93706524]
[1735485431892,23.776884,194.56,194.49,36.12568564]
[1735485432091,23.776884,194.55,194.49,36.12568564]
[1735485432264,15.93706524,194.54,194.49,0.1886204]
[1735485432470,39.71394924,194.51,194.49,0.1886204]
[1735485432670,23.776884,194.51,194.49,0.1886204]
[1735485432994,15.93706524,194.53,194.49,0.1886204]
[1735485433570,23.776884,194.51,194.49,0.1886204]
[1735485436294,15.93706524,194.53,194.49,0.1886204]
[1735485436881,15.93706524,194.52,194.49,0.1886204]
[1735485437078,15.93706524,194.55,194.49,0.1886204]
[1735485437478,23.776884,194.54,194.49,0.1886204]
[1735485437691,39.71394924,194.54,194.49,0.1886204]
[1735485437880,23.776884,194.52,194.49,0.1886204]
[1735485438185,15.93706524,194.55,194.49,0.1886204]
[1735485438391,23.776884,194.54,194.49,0.1886204]
[1735485438596,39.71394924,194.54,194.49,0.1886204]
[1735485439302,23.776884,194.54,194.49,0.1886204]
[1735485439505,15.93706524,194.57,194.5,15.93706524]
[1735485439677,10.0,194.58,194.53,15.93706524]
[1735485439882,10.0,194.58,194.57,15.93706524]
[1735485446907,10.0,194.58,194.56,15.93706524]
[1735485447110,10.0,194.58,194.54,15.93706524]
[1735485447409,10.0,194.58,194.53,15.93706524]
[1735485448611,10.0,194.58,194.54,15.93706524]
[1735485449311,10.0,194.58,194.55,15.93706524]
[1735485449613,10.0,194.58,194.56,15.93706524]
[1735485451291,10.0,194.58,194.57,15.93706524]
[1735485455691,10.0,194.58,194.57,16.12568564]
[1735485457719,10.0,194.58,194.57,0.1886204]
[1735485459819,10.0,194.58,194.57,16.12568564]
[1735485460518,10.0,194.58,194.57,0.1886204]
[1735485461699,33.776884,194.58,194.57,0.1886204]
[1735485461892,49.71394924,194.58,194.57,0.1886204]
[1735485463512,33.776884,194.58,194.57,0.1886204]
[1735485465806,49.71394924,194.58,194.57,0.1886204]
[1735485466008,10.0,194.58,194.57,0.1886204]
[1735485466308,49.71394924,194.58,194.57,0.1886204]
[1735485466515,23.776884,194.57,194.48,15.93706524]
[1735485466724,23.776884,194.52,194.46,15.93706524]
[1735485466903,39.71394924,194.52,194.45,15.93706524]
[1735485467231,39.71394924,194.52,194.44,15.93706524]
[1735485467232,23.776884,194.5,194.44,15.93706524]
[1735485467406,39.71394924,194.5,194.43,15.93706524]
[1735485467603,23.776884,194.48,194.42,15.93706524]
[1735485467807,39.71394924,194.48,194.41,15.93706524]
[1735485468003,6.16,194.52,194.43,15.93706524]
[1735485468232,1.5807,194.54,194.48,15.93706524]
[1735485468729,23.776884,194.53,194.48,15.93706524]
[1735485469323,1.5807,194.54,194.49,15.93706524]
[1735485469828,1.5807,194.54,194.48,15.93706524]
[1735485469829,23.776884,194.53,194.48,15.93706524]
[1735485470045,23.776884,194.53,194.47,15.93706524]
[1735485472034,39.71394924,194.53,194.46,15.93706524]
[1735485472633,23.776884,194.51,194.45,15.93706524]
[1735485473135,15.93706524,194.51,194.44,15.93706524]
[1735485473725,23.776884,194.51,194.45,15.93706524]
[1735485474712,15.93706524,194.53,194.46,15.93706524]
[1735485474926,17.51776524,194.54,194.47,15.93706524]
[1735485475238,23.776884,194.53,194.48,15.93706524]
[1735485476434,23.776884,194.53,194.47,15.93706524]
[1735485477545,6.16,194.55,194.49,15.93706524]
[1735485477920,23.776884,194.54,194.49,15.93706524]
[1735485479329,6.16,194.55,194.49,15.93706524]
[1735485480054,39.71394924,194.54,194.47,15.93706524]
[1735485480440,23.776884,194.54,194.48,15.93706524]
[1735485481134,39.71394924,194.54,194.47,15.93706524]
[1735485481442,23.776884,194.54,194.47,15.93706524]
[1735485481847,23.776884,194.54,194.48,15.93706524]
[1735485483447,23.776884,194.54,194.49,15.93706524]
[1735485483649,23.776884,194.54,194.5,15.93706524]
[1735485484033,23.776884,194.54,194.48,15.93706524]
[1735485484341,39.71394924,194.54,194.47,15.93706524]
[1735485486143,23.776884,194.54,194.49,15.93706524]
[1735485490153,1.647,194.58,194.52,15.93706524]
[1735485490349,1.647,194.58,194.53,15.93706524]
[1735485490538,23.776884,194.57,194.53,15.93706524]
[1735485490941,23.776884,194.57,194.52,15.93706524]
[1735485491749,39.71394924,194.57,194.5,15.93706524]
[1735485494234,33.95647453,194.57,194.5,10.17959053]
[1735485494759,23.776884,194.57,194.46,20.0]
[1735485495070,23.776884,194.57,194.5,10.17959053]
[1735485496063,23.776884,194.57,194.46,20.0]
[1735485496247,33.95647453,194.57,194.5,10.17959053]
[1735485496747,10.17959053,194.56,194.49,10.17959053]
[1735485496951,23.776884,194.55,194.49,10.17959053]
[1735485497148,23.776884,194.55,194.48,10.17959053]
[1735485500764,23.776884,194.53,194.46,30.17959053]
[1735485501562,10.17959053,194.56,194.48,10.17959053]
[1735485501765,11.82659053,194.58,194.5,10.17959053]
[1735485502464,23.776884,194.57,194.5,10.17959053]
[1735485503266,23.776884,194.55,194.48,10.17959053]
[1735485505148,10.17959053,194.55,194.47,10.17959053]
[1735485505767,10.17959053,194.55,194.48,10.17959053]
[1735485506370,33.95647453,194.57,194.48,10.17959053]
[1735485506765,23.776884,194.55,194.49,10.17959053]
[1735485507073,23.776884,194.55,194.48,10.17959053]
[1735485510374,23.776884,194.53,194.46,10.17959053]
[1735485510572,33.95647453,194.53,194.46,10.17959053]
[1735485510775,23.776884,194.53,194.46,10.17959053]
[1735485511476,23.776884,194.53,194.47,10.17959053]
[1735485512865,23.776884,194.53,194.46,10.17959053]
[1735485513347,10.17959053,194.53,194.46,10.17959053]
[1735485517170,10.17959053,194.54,194.47,10.17959053]
[1735485517777,23.776884,194.54,194.47,10.17959053]
[1735485518851,10.17959053,194.57,194.5,10.17959053]
[1735485519257,23.776884,194.56,194.5,10.17959053]
[1735485519673,23.776884,194.57,194.51,10.17959053]
[1735485519873,23.776884,194.57,194.5,10.17959053]
[1735485519874,33.95647453,194.57,194.5,10.17959053]
[1735485520078,10.17959053,194.56,194.49,10.17959053]
[1735485520664,10.17959053,194.56,194.46,20.0]
[1735485520870,10.17959053,194.54,194.47,10.17959053]
[1735485521478,23.776884,194.54,194.48,10.17959053]
[1735485532585,1.647,194.58,194.48,10.17959053]
[1735485532885,10.17959053,194.57,194.48,10.17959053]
[1735485533073,23.776884,194.56,194.48,10.17959053]
[1735485533580,23.776884,194.56,194.5,10.17959053]
[1735485533785,23.776884,194.56,194.49,10.17959053]
[1735485534368,23.776884,194.56,194.5,10.17959053]
[1735485536270,23.776884,194.56,194.49,10.17959053]
[1735485536462,10.17959053,194.56,194.49,10.17959053]
[1735485536664,10.17959053,194.55,194.47,10.17959053]
[1735485537179,10.17959053,194.56,194.48,10.17959053]
[1735485538276,10.17959053,194.56,194.49,10.17959053]
[1735485539895,33.95647453,194.57,194.49,10.17959053]
[1735485540592,23.776884,194.57,194.5,10.17959053]
[1735485541673,33.95647453,194.57,194.5,10.17959053]
[1735485541904,23.776884,194.57,194.5,10.17959053]
[1735485545087,33.95647453,194.57,194.5,10.17959053]
[1735485546382,1.647,194.58,194.52,10.17959053]
[1735485546588,11.76287438,194.61,194.55,10.17959053]
[1735485546786,7.89491741,194.61,194.56,10.17959053]
[1735485547173,7.89491741,194.61,194.57,10.17959053]
[1735485547378,7.89491741,194.61,194.58,10.17959053]
[1735485547578,7.89491741,194.61,194.59,10.17959053]
[1735485547798,6.6205,194.65,194.59,10.17959053]
[1735485547799,14.51541741,194.65,194.59,10.17959053]
[1735485547999,23.776884,194.64,194.58,10.17959053]
[1735485548300,33.95647453,194.64,194.57,10.17959053]
[1735485548503,24.69500794,194.65,194.58,10.17959053]
[1735485548703,24.69500794,194.65,194.59,10.17959053]
[1735485548704,6.6205,194.65,194.59,10.17959053]
[1735485548889,10.17959053,194.66,194.59,10.17959053]
[1735485549198,1.556,194.67,194.6,10.17959053]
[1735485549592,11.73559053,194.67,194.6,10.17959053]
[1735485550302,11.73559053,194.67,194.55,0.77064216]
[1735485550303,33.95647453,194.66,194.59,10.17959053]
[1735485550888,23.776884,194.66,194.59,10.17959053]
[1735485551101,23.776884,194.66,194.6,10.17959053]
[1735485551997,10.17959053,194.68,194.61,10.17959053]
[1735485552511,33.95647453,194.67,194.6,10.17959053]
[1735485553398,10.17959053,194.68,194.61,10.17959053]
[1735485554287,23.776884,194.69,194.61,10.17959053]
[1735485554487,33.95647453,194.69,194.62,10.17959053]
[1735485555613,10.17959053,194.68,194.61,10.17959053]
[1735485556619,10.17959053,194.66,194.57,20.0]
[1735485556826,10.17959053,194.66,194.59,10.17959053]
[1735485557806,10.17959053,194.67,194.6,10.17959053]
[1735485558312,10.17959053,194.68,194.61,10.17959053]
[1735485559310,6.2953,194.7,194.63,10.17959053]
[1735485559498,6.2953,194.7,194.64,10.17959053]
[1735485559683,1.556,194.71,194.64,10.17959053]
[1735485559887,1.556,194.71,194.65,10.17959053]
[1735485561214,10.17959053,194.72,194.65,10.17959053]
[1735485561518,6.4503,194.75,194.66,10.17959053]
[1735485561519,10.17959053,194.73,194.66,10.17959053]
[1735485562609,10.17959053,194.72,194.65,10.17959053]
[1735485564911,23.776884,194.74,194.66,10.17959053]
[1735485565098,1.5952,194.76,194.7,10.17959053]
[1735485565700,11.77479053,194.76,194.69,10.17959053]
[1735485566016,23.776884,194.75,194.69,10.17959053]
[1735485566388,23.776884,194.79,194.7,10.17959053]
[1735485566606,6.6661,194.8,194.7,10.17959053]
[1735485566806,23.776884,194.77,194.7,10.17959053]
[1735485567092,6.6661,194.8,194.7,10.17959053]
[1735485567288,10.17959053,194.78,194.7,10.17959053]
[1735485567513,23.776884,194.77,194.7,10.17959053]
[1735485568093,23.776884,194.72,194.66,0.77032996]
[1735485568295,23.776884,194.69,194.62,10.17959053]
[1735485568513,10.17959053,194.69,194.62,10.17959053]
[1735485568718,10.17959053,194.7,194.63,10.17959053]
[1735485568918,10.17959053,194.69,194.56,2.34802904]
[1735485569215,10.17959053,194.71,194.64,10.17959053]
[1735485570200,10.17959053,194.72,194.65,10.17959053]
[1735485572132,8.3295,194.73,194.64,10.17959053]
[1735485572133,10.17959053,194.71,194.64,10.17959053]
[1735485572296,10.17959053,194.72,194.64,10.17959053]
[1735485574228,10.17959053,194.72,194.65,10.17959053]
[1735485574605,10.17959053,194.74,194.67,10.17959053]
[1735485575837,23.776884,194.77,194.67,10.17959053]
[1735485576134,10.17959053,194.74,194.67,10.17959053]
[1735485576332,10.17959053,194.73,194.68,20.0]
[1735485576521,10.17959053,194.71,194.64,10.17959053]
[1735485579033,10.17959053,194.69,194.61,20.0]
[1735485579238,46.69453364,194.8,194.61,30.17959053]
[1735485579239,10.17959053,194.68,194.61,30.17959053]
[1735485579535,7.667,194.7,194.61,30.17959053]
[1735485579724,7.667,194.7,194.62,10.17959053]
[1735485579909,10.17959053,194.69,194.62,10.17959053]
[1735485580113,10.17959053,194.68,194.61,10.17959053]
[1735485581238,7.667,194.7,194.61,10.17959053]
[1735485581440,10.17959053,194.68,194.6,20.0]
[1735485581634,10.17959053,194.68,194.61,10.17959053]
[1735485582031,10.17959053,194.69,194.62,10.17959053]
[1735485583453,10.17959053,194.68,194.61,10.17959053]
[1735485584917,7.667,194.7,194.59,1.5639]
[1735485585118,10.17959053,194.67,194.6,10.17959053]
[1735485588550,10.17959053,194.65,194.57,20.0]
[1735485588846,10.17959053,194.63,194.59,20.0]
[1735485589024,10.17959053,194.62,194.59,20.0]